[Event "*** Titled Tuesday Blitz"]
[Site "Chess.com"]
[Date "2020.12.29"]
[Round "6"]
[White "midedu"]
[Black "VladimirBugayev"]
[Result "1-0"]
[WhiteElo "2129"]
[BlackElo "2271"]
[TimeControl "180+1"]
[EndTime "11:06:16 PST"]
[Termination "midedu won on time"]

1. e4 {[%clk 0:03:00.9]} 1... c6 {[%clk 0:02:13.7]} 2. d4 {[%clk 0:02:59.4]}
2... d5 {[%clk 0:02:13.5]} 3. Nd2 {[%clk 0:02:58.3]} 3... dxe4 {[%clk
0:02:13.3]} 4. Nxe4 {[%clk 0:02:57.8]} 4... Nf6 {[%clk 0:02:13.9]} 5. Ng5 {[%clk
0:02:56.9]} 5... Bf5 {[%clk 0:02:12.3]} 6. Bc4 {[%clk 0:02:56.4]} 6... e6 {[%clk
0:02:12.7]} 7. N1f3 {[%clk 0:02:50.6]} 7... h6 {[%clk 0:02:06.8]} 8. Nh3 {[%clk
0:02:47.7]} 8... Bd6 {[%clk 0:01:59.7]} 9. Nf4 {[%clk 0:02:45.6]} 9... O-O
{[%clk 0:01:58.3]} 10. O-O {[%clk 0:02:42.8]} 10... Qc7 {[%clk 0:01:58]} 11. Nd3
{[%clk 0:02:40.9]} 11... b5 {[%clk 0:01:57.2]} 12. Bb3 {[%clk 0:02:40.3]} 12...
a5 {[%clk 0:01:56.4]} 13. a4 {[%clk 0:02:40.1]} 13... b4 {[%clk 0:01:56.3]} 14.
h3 {[%clk 0:02:39.1]} 14... Nbd7 {[%clk 0:01:54.8]} 15. Qe2 {[%clk 0:02:34.6]}
15... c5 {[%clk 0:01:52.1]} 16. dxc5 {[%clk 0:02:33.6]} 16... Nxc5 {[%clk
0:01:52]} 17. Nxc5 {[%clk 0:02:33.3]} 17... Bxc5 {[%clk 0:01:45.8]} 18. Be3
{[%clk 0:02:29.7]} 18... Rfc8 {[%clk 0:01:42.3]} 19. Rac1 {[%clk 0:02:26.4]}
19... Bd6 {[%clk 0:01:34.7]} 20. Rfd1 {[%clk 0:02:24.9]} 20... Be4 {[%clk
0:01:29.6]} 21. Bd4 {[%clk 0:02:18.2]} 21... Bb7 {[%clk 0:01:21.5]} 22. Bxf6
{[%clk 0:02:14]} 22... gxf6 {[%clk 0:01:20.9]} 23. Rd4 {[%clk 0:02:09]} 23...
Bf4 {[%clk 0:01:11.9]} 24. Rcd1 {[%clk 0:02:05.5]} 24... Rd8 {[%clk 0:01:11.5]}
25. Ne1 {[%clk 0:01:50.6]} 25... f5 {[%clk 0:01:01.6]} 26. Qb5 {[%clk
0:01:43.9]} 26... Bc6 {[%clk 0:00:47.5]} 27. Rxd8+ {[%clk 0:01:42.1]} 27... Rxd8
{[%clk 0:00:46.9]} 28. Rxd8+ {[%clk 0:01:40.9]} 28... Qxd8 {[%clk 0:00:43.9]}
29. Qxc6 {[%clk 0:01:40.8]} 29... Qd1 {[%clk 0:00:44.4]} 30. g3 {[%clk
0:00:49.6]} 30... Qxe1+ {[%clk 0:00:37.7]} 31. Kg2 {[%clk 0:00:50]} 31... Be5
{[%clk 0:00:32.4]} 32. Bxe6 {[%clk 0:00:45.4]} 32... fxe6 {[%clk 0:00:18.6]} 33.
Qxe6+ {[%clk 0:00:44.6]} 33... Kg7 {[%clk 0:00:18.5]} 34. Qxf5 {[%clk
0:00:40.2]} 34... Bf6 {[%clk 0:00:14.7]} 35. b3 {[%clk 0:00:38.6]} 35... Qe7
{[%clk 0:00:12]} 36. Kh2 {[%clk 0:00:34.8]} 36... Qb7 {[%clk 0:00:10.5]} 37.
Qxa5 {[%clk 0:00:30.1]} 37... Qf3 {[%clk 0:00:09.1]} 38. Qc7+ {[%clk 0:00:23.5]}
38... Kg6 {[%clk 0:00:07.6]} 39. Qc5 {[%clk 0:00:19.3]} 39... h5 {[%clk
0:00:04.8]} 40. h4 {[%clk 0:00:19]} 40... Qf5 {[%clk 0:00:03]} 41. Qc4 {[%clk
0:00:15.8]} 41... Qxf2+ {[%clk 0:00:02.4]} 42. Kh3 {[%clk 0:00:13.9]} 1-0

[Event "*** Titled Tuesday Blitz"]
[Site "Chess.com"]
[Date "2020.12.29"]
[Round "6"]
[White "IsuruAlahakoon"]
[Black "arna"]
[Result "0-1"]
[WhiteElo "2272"]
[BlackElo "2142"]
[TimeControl "180+1"]
[EndTime "11:06:17 PST"]
[Termination "arna won on time"]

1. Nf3 {[%clk 0:03:00.9]} 1... d5 {[%clk 0:02:59.2]} 2. e3 {[%clk 0:03:00.3]}
2... c6 {[%clk 0:02:59.2]} 3. c4 {[%clk 0:02:58.5]} 3... Nf6 {[%clk 0:02:59.5]}
4. b3 {[%clk 0:02:56.7]} 4... Bf5 {[%clk 0:02:56]} 5. Bb2 {[%clk 0:02:55.2]}
5... e6 {[%clk 0:02:56.5]} 6. d4 {[%clk 0:02:50.1]} 6... Ne4 {[%clk 0:02:50.5]}
7. a3 {[%clk 0:02:40.6]} 7... Nd7 {[%clk 0:02:45]} 8. Nc3 {[%clk 0:02:34.6]}
8... Nxc3 {[%clk 0:02:41]} 9. Bxc3 {[%clk 0:02:34.1]} 9... Bd6 {[%clk
0:02:36.3]} 10. Bd3 {[%clk 0:02:32.4]} 10... Qf6 {[%clk 0:02:23.6]} 11. Bxf5
{[%clk 0:02:26.4]} 11... Qxf5 {[%clk 0:02:17.1]} 12. O-O {[%clk 0:02:25.9]}
12... O-O {[%clk 0:02:15.9]} 13. Qe2 {[%clk 0:02:16]} 13... Qh5 {[%clk
0:02:03.5]} 14. Rfe1 {[%clk 0:02:06.9]} 14... Rfd8 {[%clk 0:01:21.3]} 15. cxd5
{[%clk 0:01:57.9]} 15... exd5 {[%clk 0:01:18]} 16. Bb4 {[%clk 0:01:55.6]} 16...
Bxb4 {[%clk 0:01:10.3]} 17. axb4 {[%clk 0:01:56.5]} 17... a6 {[%clk 0:01:11.2]}
18. h3 {[%clk 0:01:22.8]} 18... Re8 {[%clk 0:01:11.1]} 19. Qd3 {[%clk
0:01:16.9]} 19... f5 {[%clk 0:00:47.1]} 20. Rac1 {[%clk 0:00:57.4]} 20... Re6
{[%clk 0:00:44.1]} 21. Rf1 {[%clk 0:00:35.8]} 21... Rae8 {[%clk 0:00:43.6]} 22.
Qd2 {[%clk 0:00:28.8]} 22... Rg6 {[%clk 0:00:35.9]} 23. Kh2 {[%clk 0:00:26.8]}
23... Rge6 {[%clk 0:00:28.2]} 24. Ne1 {[%clk 0:00:25.8]} 24... g5 {[%clk
0:00:21.7]} 25. Nd3 {[%clk 0:00:18.3]} 25... Rh6 {[%clk 0:00:16.7]} 26. Qd1
{[%clk 0:00:16.7]} 26... Qh4 {[%clk 0:00:14]} 27. Qf3 {[%clk 0:00:14.5]} 27...
Rf8 {[%clk 0:00:07.8]} 28. Qg3 {[%clk 0:00:09.6]} 28... Qe4 {[%clk 0:00:07.1]}
29. Rcd1 {[%clk 0:00:08]} 29... g4 {[%clk 0:00:06.2]} 30. Qc7 {[%clk 0:00:04.3]}
30... Qe6 {[%clk 0:00:05.4]} 31. Qg3 {[%clk 0:00:02.1]} 31... Kh8 {[%clk
0:00:04.1]} 32. Nf4 {[%clk 0:00:02.2]} 32... Qf7 {[%clk 0:00:03.6]} 33. Kg1
{[%clk 0:00:02.2]} 33... gxh3 {[%clk 0:00:03.3]} 0-1

[Event "*** Titled Tuesday Blitz"]
[Site "Chess.com"]
[Date "2020.12.29"]
[Round "6"]
[White "pavelalexandru07"]
[Black "juli2512"]
[Result "1-0"]
[WhiteElo "2280"]
[BlackElo "2102"]
[TimeControl "180+1"]
[EndTime "11:06:17 PST"]
[Termination "pavelalexandru07 won by resignation"]

1. e4 {[%clk 0:02:59.8]} 1... c5 {[%clk 0:02:57.3]} 2. Nf3 {[%clk 0:02:59]} 2...
d6 {[%clk 0:02:57]} 3. d4 {[%clk 0:02:57.3]} 3... cxd4 {[%clk 0:02:57.2]} 4.
Nxd4 {[%clk 0:02:58.2]} 4... Nf6 {[%clk 0:02:57.1]} 5. Nc3 {[%clk 0:02:58.6]}
5... Nc6 {[%clk 0:02:57.4]} 6. Bg5 {[%clk 0:02:57.4]} 6... e6 {[%clk 0:02:57]}
7. Qd2 {[%clk 0:02:56.8]} 7... Be7 {[%clk 0:02:57.1]} 8. f4 {[%clk 0:02:37.3]}
8... O-O {[%clk 0:02:55.8]} 9. O-O-O {[%clk 0:02:35.8]} 9... Nxd4 {[%clk
0:02:53.1]} 10. Qxd4 {[%clk 0:02:34.1]} 10... Qc7 {[%clk 0:02:52.8]} 11. Be2
{[%clk 0:02:30.9]} 11... Rd8 {[%clk 0:02:51.3]} 12. Qd2 {[%clk 0:02:22.3]} 12...
a6 {[%clk 0:02:44.3]} 13. Bf3 {[%clk 0:02:18.9]} 13... Rb8 {[%clk 0:02:35]} 14.
g4 {[%clk 0:02:18.7]} 14... b5 {[%clk 0:02:28]} 15. h4 {[%clk 0:02:10.2]} 15...
b4 {[%clk 0:02:22.9]} 16. Ne2 {[%clk 0:02:09.9]} 16... a5 {[%clk 0:02:13.2]} 17.
Bxf6 {[%clk 0:01:51.6]} 17... Bxf6 {[%clk 0:02:11.9]} 18. g5 {[%clk 0:01:52.5]}
18... Be7 {[%clk 0:02:11.8]} 19. h5 {[%clk 0:01:52.7]} 19... a4 {[%clk
0:01:55.2]} 20. Kb1 {[%clk 0:01:18]} 20... d5 {[%clk 0:01:46.9]} 21. e5 {[%clk
0:01:16.9]} 21... b3 {[%clk 0:01:38.4]} 22. cxb3 {[%clk 0:01:13.8]} 22... axb3
{[%clk 0:01:37.2]} 23. axb3 {[%clk 0:01:10.7]} 23... Rxb3 {[%clk 0:01:33.7]} 24.
Nd4 {[%clk 0:01:10.1]} 24... Rb4 {[%clk 0:01:24.2]} 25. Rc1 {[%clk 0:01:05.7]}
25... Rc4 {[%clk 0:01:02]} 26. b3 {[%clk 0:00:48.6]} 26... Rc5 {[%clk
0:00:30.4]} 27. g6 {[%clk 0:00:33.8]} 27... fxg6 {[%clk 0:00:27.2]} 28. hxg6
{[%clk 0:00:33.5]} 28... h6 {[%clk 0:00:26.8]} 29. Bg4 {[%clk 0:00:27.6]} 29...
Qb6 {[%clk 0:00:25]} 30. Qb2 {[%clk 0:00:16.4]} 30... Bd7 {[%clk 0:00:23.6]} 31.
Nf3 {[%clk 0:00:09.3]} 31... Rb8 {[%clk 0:00:21.2]} 32. Rxc5 {[%clk 0:00:09]}
32... Bxc5 {[%clk 0:00:19.3]} 33. Rc1 {[%clk 0:00:09.3]} 33... Be3 {[%clk
0:00:18.3]} 34. Rc3 {[%clk 0:00:09]} 34... Bxf4 {[%clk 0:00:17.4]} 35. Qe2
{[%clk 0:00:05.4]} 35... Qg1+ {[%clk 0:00:17.1]} 36. Nxg1 {[%clk 0:00:05.1]}
36... Bg5 {[%clk 0:00:15.7]} 37. Qf3 {[%clk 0:00:05.3]} 37... Rf8 {[%clk
0:00:14.7]} 38. Qe2 {[%clk 0:00:05.7]} 38... Be7 {[%clk 0:00:13.8]} 39. Rf3
{[%clk 0:00:06.1]} 39... Rb8 {[%clk 0:00:12.9]} 40. Rf7 {[%clk 0:00:06.7]} 40...
Bf8 {[%clk 0:00:12.6]} 41. Rxd7 {[%clk 0:00:05.9]} 1-0

[Event "*** Titled Tuesday Blitz"]
[Site "Chess.com"]
[Date "2020.12.29"]
[Round "6"]
[White "krzyzan94"]
[Black "ShimanovAlex"]
[Result "0-1"]
[WhiteElo "2641"]
[BlackElo "2848"]
[TimeControl "180+1"]
[EndTime "11:06:20 PST"]
[Termination "ShimanovAlex won by resignation"]

1. c4 {[%clk 0:03:00.9]} 1... e6 {[%clk 0:02:55.8]} 2. g3 {[%clk 0:03:00.8]}
2... d5 {[%clk 0:02:51.5]} 3. Bg2 {[%clk 0:03:01.1]} 3... dxc4 {[%clk
0:02:49.4]} 4. Qa4+ {[%clk 0:02:59.5]} 4... Bd7 {[%clk 0:02:45.5]} 5. Qxc4
{[%clk 0:02:59.8]} 5... Bc6 {[%clk 0:02:46]} 6. Nf3 {[%clk 0:03:00.3]} 6... Nf6
{[%clk 0:02:45.9]} 7. O-O {[%clk 0:02:56.3]} 7... Be7 {[%clk 0:02:41.3]} 8. d3
{[%clk 0:02:56.2]} 8... O-O {[%clk 0:02:39.6]} 9. e4 {[%clk 0:02:52]} 9... b5
{[%clk 0:02:34.6]} 10. Qc2 {[%clk 0:02:50]} 10... Bb7 {[%clk 0:02:34.4]} 11. a4
{[%clk 0:02:48.8]} 11... a6 {[%clk 0:02:33.1]} 12. Be3 {[%clk 0:02:39]} 12...
Nc6 {[%clk 0:02:32.3]} 13. Rd1 {[%clk 0:02:34.6]} 13... Nb4 {[%clk 0:02:30.8]}
14. Qe2 {[%clk 0:02:30.1]} 14... c5 {[%clk 0:02:29.5]} 15. Nc3 {[%clk
0:02:30.4]} 15... Qe8 {[%clk 0:02:22.6]} 16. Ne5 {[%clk 0:02:22.3]} 16... Nd7
{[%clk 0:02:20]} 17. Nxd7 {[%clk 0:02:14.4]} 17... Qxd7 {[%clk 0:02:20.9]} 18.
d4 {[%clk 0:02:15]} 18... c4 {[%clk 0:02:19.8]} 19. d5 {[%clk 0:02:08.5]} 19...
exd5 {[%clk 0:02:18.1]} 20. Nxd5 {[%clk 0:02:08.5]} 20... Bxd5 {[%clk
0:02:16.7]} 21. exd5 {[%clk 0:02:09.4]} 21... Bd6 {[%clk 0:02:17]} 22. Bd4
{[%clk 0:02:04.7]} 22... Rfe8 {[%clk 0:02:07.7]} 23. Qd2 {[%clk 0:02:03.7]}
23... Nd3 {[%clk 0:02:03.8]} 24. Bf1 {[%clk 0:01:30]} 24... Nc5 {[%clk
0:01:50.9]} 25. Qg5 {[%clk 0:01:01.2]} 25... f6 {[%clk 0:01:48.3]} 26. Qh4
{[%clk 0:01:01]} 26... Re4 {[%clk 0:01:44.3]} 27. Qh5 {[%clk 0:00:58.7]} 27...
Nb3 {[%clk 0:01:41.4]} 28. Bh3 {[%clk 0:00:58.2]} 28... Qe8 {[%clk 0:01:39]} 29.
Qxe8+ {[%clk 0:00:30.2]} 29... Raxe8 {[%clk 0:01:37.8]} 30. Be3 {[%clk
0:00:30.8]} 30... Nxa1 {[%clk 0:01:37.3]} 31. Rxa1 {[%clk 0:00:30.8]} 31... b4
{[%clk 0:01:35.7]} 32. Rc1 {[%clk 0:00:29.6]} 32... c3 {[%clk 0:01:02.2]} 33.
bxc3 {[%clk 0:00:30.5]} 33... b3 {[%clk 0:01:02.4]} 34. Rb1 {[%clk 0:00:30.4]}
34... Rb8 {[%clk 0:01:01.7]} 35. Bf1 {[%clk 0:00:13.7]} 35... Rxa4 {[%clk
0:01:00.7]} 36. c4 {[%clk 0:00:14.3]} 36... b2 {[%clk 0:00:49.9]} 37. c5 {[%clk
0:00:14.6]} 37... Ra1 {[%clk 0:00:50.1]} 38. Rxb2 {[%clk 0:00:08.3]} 38... Rxb2
{[%clk 0:00:48.7]} 39. cxd6 {[%clk 0:00:09]} 39... Kf7 {[%clk 0:00:44.3]} 40.
Kg2 {[%clk 0:00:07]} 40... Rxf1 {[%clk 0:00:30.3]} 41. Kxf1 {[%clk 0:00:04.6]}
41... Ke8 {[%clk 0:00:30.9]} 42. Kg2 {[%clk 0:00:02.2]} 42... a5 {[%clk
0:00:30.3]} 43. Kf3 {[%clk 0:00:02.7]} 43... a4 {[%clk 0:00:30.3]} 44. Ke4
{[%clk 0:00:02.4]} 44... a3 {[%clk 0:00:29.8]} 45. Kf5 {[%clk 0:00:02.6]} 45...
Kd7 {[%clk 0:00:27.5]} 46. Bd4 {[%clk 0:00:02.2]} 0-1

[Event "*** Titled Tuesday Blitz"]
[Site "Chess.com"]
[Date "2020.12.29"]
[Round "6"]
[White "ulkaf961"]
[Black "KhamzinOlzhas"]
[Result "1-0"]
[WhiteElo "2315"]
[BlackElo "2469"]
[TimeControl "180+1"]
[EndTime "11:06:21 PST"]
[Termination "ulkaf961 won on time"]

1. d4 {[%clk 0:03:00.9]} 1... d5 {[%clk 0:02:57.8]} 2. c4 {[%clk 0:03:00.8]}
2... c6 {[%clk 0:02:57.6]} 3. cxd5 {[%clk 0:02:59.6]} 3... cxd5 {[%clk
0:02:57.2]} 4. Bf4 {[%clk 0:02:59.7]} 4... a6 {[%clk 0:02:57.2]} 5. Nc3 {[%clk
0:02:57.7]} 5... Nc6 {[%clk 0:02:57.6]} 6. e3 {[%clk 0:02:52.2]} 6... Nf6 {[%clk
0:02:57]} 7. Bd3 {[%clk 0:02:52.1]} 7... e6 {[%clk 0:02:57.1]} 8. Rc1 {[%clk
0:02:45.3]} 8... Bd7 {[%clk 0:02:49.9]} 9. Nf3 {[%clk 0:02:44.5]} 9... b5 {[%clk
0:02:48.9]} 10. Ne5 {[%clk 0:02:39.6]} 10... Na5 {[%clk 0:02:42.5]} 11. O-O
{[%clk 0:02:11.9]} 11... Rc8 {[%clk 0:02:36.9]} 12. Qe2 {[%clk 0:02:05.3]} 12...
Be7 {[%clk 0:02:24.7]} 13. Bg3 {[%clk 0:01:59.2]} 13... Nc4 {[%clk 0:02:19.2]}
14. f4 {[%clk 0:01:54.5]} 14... O-O {[%clk 0:02:15.5]} 15. Bf2 {[%clk
0:01:36.8]} 15... Nd6 {[%clk 0:01:29.8]} 16. g4 {[%clk 0:01:32.3]} 16... b4
{[%clk 0:01:19.6]} 17. g5 {[%clk 0:01:19.3]} 17... bxc3 {[%clk 0:01:11.1]} 18.
gxf6 {[%clk 0:01:18.5]} 18... Bxf6 {[%clk 0:01:09.2]} 19. bxc3 {[%clk
0:01:01.2]} 19... a5 {[%clk 0:01:08.5]} 20. Kh1 {[%clk 0:00:45.5]} 20... Ne4
{[%clk 0:01:04.3]} 21. Rg1 {[%clk 0:00:38.9]} 21... Bxe5 {[%clk 0:00:59.3]} 22.
fxe5 {[%clk 0:00:34]} 22... f5 {[%clk 0:00:49.9]} 23. Bg3 {[%clk 0:00:17.4]}
23... Nxc3 {[%clk 0:00:43.3]} 24. Qg2 {[%clk 0:00:17]} 24... Rf7 {[%clk
0:00:34.4]} 25. Bf4 {[%clk 0:00:16.7]} 25... Kh8 {[%clk 0:00:27.4]} 26. Qh3
{[%clk 0:00:14.3]} 26... Ne4 {[%clk 0:00:22.6]} 27. Bxe4 {[%clk 0:00:14.4]}
27... fxe4 {[%clk 0:00:18.7]} 28. Rcf1 {[%clk 0:00:13.9]} 28... Qf8 {[%clk
0:00:15.6]} 29. Rg4 {[%clk 0:00:13.2]} 29... Rc2 {[%clk 0:00:11.4]} 30. Rfg1
{[%clk 0:00:13.3]} 30... Rf5 {[%clk 0:00:04.2]} 31. Rh4 {[%clk 0:00:10.3]} 31...
Qg8 {[%clk 0:00:04.1]} 32. Bh6 {[%clk 0:00:05.8]} 32... Rf7 {[%clk 0:00:02.3]}
33. Bg5 {[%clk 0:00:03.3]} 33... Rff2 {[%clk 0:00:01.4]} 34. Bf6 {[%clk
0:00:02.9]} 34... Rxh2+ {[%clk 0:00:01.4]} 35. Qxh2 {[%clk 0:00:03.2]} 35...
Rxh2+ {[%clk 0:00:01.9]} 36. Rxh2 {[%clk 0:00:03.6]} 1-0

[Event "*** Titled Tuesday Blitz"]
[Site "Chess.com"]
[Date "2020.12.29"]
[Round "6"]
[White "Gabrielian_Artur"]
[Black "MumLookatMeNow"]
[Result "1-0"]
[WhiteElo "2781"]
[BlackElo "2517"]
[TimeControl "180+1"]
[EndTime "11:06:22 PST"]
[Termination "Gabrielian_Artur won by checkmate"]

1. e4 {[%clk 0:03:00.9]} 1... d5 {[%clk 0:02:58.4]} 2. exd5 {[%clk 0:03:00.5]}
2... Qxd5 {[%clk 0:02:59.3]} 3. Nc3 {[%clk 0:03:00.4]} 3... Qd8 {[%clk
0:02:59.7]} 4. d4 {[%clk 0:03:00.3]} 4... Nf6 {[%clk 0:03:00.2]} 5. Nf3 {[%clk
0:03:00.2]} 5... Bg4 {[%clk 0:03:00.3]} 6. h3 {[%clk 0:02:59.9]} 6... Bxf3
{[%clk 0:03:00.7]} 7. Qxf3 {[%clk 0:02:59.6]} 7... c6 {[%clk 0:03:01.6]} 8. Be3
{[%clk 0:02:57.6]} 8... e6 {[%clk 0:03:01.9]} 9. O-O-O {[%clk 0:02:55.8]} 9...
Bb4 {[%clk 0:03:01.9]} 10. Ne4 {[%clk 0:02:52.4]} 10... Nxe4 {[%clk 0:03:02]}
11. Qxe4 {[%clk 0:02:52.7]} 11... Qd5 {[%clk 0:03:02.9]} 12. Qxd5 {[%clk
0:02:45.8]} 12... cxd5 {[%clk 0:03:03.8]} 13. c3 {[%clk 0:02:44.3]} 13... Bd6
{[%clk 0:03:03.3]} 14. h4 {[%clk 0:02:39.8]} 14... h5 {[%clk 0:03:01.5]} 15. f3
{[%clk 0:02:37.1]} 15... Nd7 {[%clk 0:02:59.6]} 16. g4 {[%clk 0:02:37.1]} 16...
g6 {[%clk 0:02:49]} 17. Be2 {[%clk 0:02:34.7]} 17... a6 {[%clk 0:02:48.4]} 18.
Kb1 {[%clk 0:02:33.9]} 18... b5 {[%clk 0:02:45.9]} 19. Kc2 {[%clk 0:02:28]}
19... Be7 {[%clk 0:02:23.3]} 20. gxh5 {[%clk 0:02:23.6]} 20... Rxh5 {[%clk
0:02:03.8]} 21. Bf2 {[%clk 0:02:23.4]} 21... Nf6 {[%clk 0:01:51.1]} 22. a4
{[%clk 0:02:20.9]} 22... b4 {[%clk 0:01:45.2]} 23. a5 {[%clk 0:02:09.9]} 23...
Kd7 {[%clk 0:01:39.9]} 24. Kb3 {[%clk 0:02:06.6]} 24... bxc3 {[%clk 0:01:23.5]}
25. bxc3 {[%clk 0:02:06.6]} 25... Rhh8 {[%clk 0:01:24]} 26. Kc2 {[%clk
0:02:04.6]} 26... Ne8 {[%clk 0:01:11.1]} 27. Rb1 {[%clk 0:02:00.4]} 27... Nd6
{[%clk 0:01:11.1]} 28. Rb6 {[%clk 0:01:59.1]} 28... Bd8 {[%clk 0:01:10.8]} 29.
Rxa6 {[%clk 0:01:45.4]} 29... Rxa6 {[%clk 0:01:10.1]} 30. Bxa6 {[%clk
0:01:44.7]} 30... Bxa5 {[%clk 0:01:10.3]} 31. Ra1 {[%clk 0:01:18.6]} 31... Bc7
{[%clk 0:01:09.7]} 32. Bd3 {[%clk 0:01:16.3]} 32... Nf5 {[%clk 0:00:50.5]} 33.
Ra7 {[%clk 0:01:02.3]} 33... Kc6 {[%clk 0:00:44]} 34. Bxf5 {[%clk 0:00:30.3]}
34... gxf5 {[%clk 0:00:44.9]} 35. Kd3 {[%clk 0:00:28.8]} 35... Rg8 {[%clk
0:00:36.3]} 36. Ke2 {[%clk 0:00:12.9]} 36... Rh8 {[%clk 0:00:29.8]} 37. Ra1
{[%clk 0:00:11.8]} 37... Bd8 {[%clk 0:00:28.8]} 38. Rh1 {[%clk 0:00:11.2]} 38...
Rh5 {[%clk 0:00:28.3]} 39. f4 {[%clk 0:00:11]} 39... Kb5 {[%clk 0:00:20.2]} 40.
Kd3 {[%clk 0:00:10.9]} 40... Ba5 {[%clk 0:00:19.5]} 41. Rb1+ {[%clk 0:00:10.3]}
41... Kc6 {[%clk 0:00:19.8]} 42. Rb8 {[%clk 0:00:09.7]} 42... Kd7 {[%clk
0:00:18.9]} 43. Rb7+ {[%clk 0:00:09.6]} 43... Bc7 {[%clk 0:00:19]} 44. c4 {[%clk
0:00:08.9]} 44... dxc4+ {[%clk 0:00:18.3]} 45. Kxc4 {[%clk 0:00:09.5]} 45... Kc6
{[%clk 0:00:18.9]} 46. Ra7 {[%clk 0:00:09.7]} 46... Kb6 {[%clk 0:00:16.9]} 47.
d5# {[%clk 0:00:09.4]} 1-0

[Event "*** Titled Tuesday Blitz"]
[Site "Chess.com"]
[Date "2020.12.29"]
[Round "6"]
[White "Meri-Arabidze"]
[Black "DenLaz"]
[Result "0-1"]
[WhiteElo "2631"]
[BlackElo "2819"]
[TimeControl "180+1"]
[EndTime "11:06:26 PST"]
[Termination "DenLaz won on time"]

1. d4 {[%clk 0:03:00.9]} 1... d5 {[%clk 0:02:57.3]} 2. c4 {[%clk 0:03:00.9]}
2... c6 {[%clk 0:02:56.9]} 3. Nf3 {[%clk 0:03:01.4]} 3... Nf6 {[%clk 0:02:57.2]}
4. Nc3 {[%clk 0:03:01.4]} 4... dxc4 {[%clk 0:02:54.9]} 5. a4 {[%clk 0:02:59.5]}
5... Bf5 {[%clk 0:02:49.2]} 6. e3 {[%clk 0:02:59.4]} 6... e6 {[%clk 0:02:49.7]}
7. Bxc4 {[%clk 0:02:59.4]} 7... Bb4 {[%clk 0:02:50.3]} 8. O-O {[%clk 0:02:59.6]}
8... O-O {[%clk 0:02:50.9]} 9. Qe2 {[%clk 0:02:59]} 9... Nbd7 {[%clk 0:02:51]}
10. Bd2 {[%clk 0:02:55.6]} 10... Bg6 {[%clk 0:02:47.2]} 11. Rfd1 {[%clk
0:02:50.3]} 11... a5 {[%clk 0:02:41.6]} 12. h3 {[%clk 0:02:48.1]} 12... Qe7
{[%clk 0:02:40.2]} 13. Rac1 {[%clk 0:02:47.2]} 13... Rfe8 {[%clk 0:02:07.6]} 14.
Ne5 {[%clk 0:02:29.2]} 14... Nxe5 {[%clk 0:02:06.2]} 15. dxe5 {[%clk 0:02:30.1]}
15... Nd7 {[%clk 0:02:06.4]} 16. f4 {[%clk 0:02:29.6]} 16... Nc5 {[%clk
0:02:04.1]} 17. Be1 {[%clk 0:02:23.5]} 17... Bxc3 {[%clk 0:01:38.7]} 18. Bxc3
{[%clk 0:02:19.3]} 18... Nxa4 {[%clk 0:01:37.9]} 19. Rd6 {[%clk 0:02:09.5]}
19... Nxc3 {[%clk 0:01:32.1]} 20. Rxc3 {[%clk 0:02:08]} 20... Red8 {[%clk
0:01:25.9]} 21. Qd2 {[%clk 0:01:59.5]} 21... a4 {[%clk 0:00:51.4]} 22. Qd4
{[%clk 0:01:51.8]} 22... h5 {[%clk 0:00:44.3]} 23. e4 {[%clk 0:01:44.5]} 23...
Qh4 {[%clk 0:00:35.9]} 24. Rd3 {[%clk 0:00:31.6]} 24... Rxd6 {[%clk 0:00:33.1]}
25. exd6 {[%clk 0:00:32.4]} 25... Qxf4 {[%clk 0:00:33.2]} 26. d7 {[%clk
0:00:32.2]} 26... Rd8 {[%clk 0:00:32.7]} 27. Qb6 {[%clk 0:00:31.6]} 27... Qc1+
{[%clk 0:00:20.9]} 28. Kh2 {[%clk 0:00:29.8]} 28... Rxd7 {[%clk 0:00:21.2]} 29.
Rxd7 {[%clk 0:00:28.2]} 29... Qxc4 {[%clk 0:00:21.6]} 30. Rxb7 {[%clk
0:00:22.7]} 30... Qxe4 {[%clk 0:00:17.5]} 31. Qd8+ {[%clk 0:00:22.7]} 31... Kh7
{[%clk 0:00:17.7]} 32. Qg5 {[%clk 0:00:19]} 32... Qd4 {[%clk 0:00:10.4]} 33. Qg3
{[%clk 0:00:14.3]} 33... h4 {[%clk 0:00:10.3]} 34. Qc7 {[%clk 0:00:13.6]} 34...
e5 {[%clk 0:00:06.8]} 35. Rb8 {[%clk 0:00:08.4]} 35... Qf4+ {[%clk 0:00:06.6]}
36. Kg1 {[%clk 0:00:08.7]} 36... Be4 {[%clk 0:00:06.2]} 37. Qd8 {[%clk
0:00:05.4]} 37... Qe3+ {[%clk 0:00:06.4]} 38. Kf1 {[%clk 0:00:04.2]} 38... Bd3+
{[%clk 0:00:06.3]} 0-1